{"text_format":"3","workbook":"xlsx","n_sheets":4,"sheets":["KEZDÉS","PROJEKT PARAMÉTEREI","PROJEKTADATOK","PROJEKT ÖSSZESÍTÉSE"],"not_rendered":{"charts":2,"defined_names":3,"pivot_tables":1},"read":"whole","date_system":"1900"}

{"sheet":"KEZDÉS","index":0,"n_rows":7,"n_cols":2,"rows_kept":7}
[null,"A SABLON ISMERTETÉSE"]
[null,"Ebben az Eseménytervezési nyilvántartó munkafüzetben nyomon követheti a projekt paramétereit, adatait és összesítését."]
[null,"Adja meg az adatokat a Projekt paraméterei munkalapon az oszlopdiagramok frissítéséhez, és adja meg az adatokat a Projekt adatai munkalapon. A Projekt összesítése munkalapon található kimutatás automatikusan frissül."]
[null,"Ha megadja a cég nevét a Paraméterek munkalapon, az a többi munkalapon automatikusan frissül."]
[null,"Megjegyzés:  "]
[null,"Az ESEMÉNYTERVEZÉSI NYILVÁNTARTÓ munkafüzet mindegyik munkalapjának A oszlopában további útmutatást olvashat. Ez a szöveg szándékosan van elrejtve. Ha törölni szeretné a szöveget, jelölje ki az A oszlopot, majd nyomja le a DELETE billentyűt. Ha láthatóvá szeretné tenni a szöveget, jelölje ki az A oszlopot, majd módosítsa a betűszínt."]
[null,"Ha többet szeretne megtudni a munkalapokon lévő táblázatokról, nyomja le a SHIFT+F10 billentyűkombinációt egy táblázaton belül, és válassza a TÁBLÁZAT parancsot, majd a HELYETTESÍTŐ SZÖVEG elemet."]

{"sheet":"PROJEKT PARAMÉTEREI","index":1,"n_rows":19,"n_cols":9,"rows_kept":19,"merged":[[23,1,42,3]]}
[null,"Cég neve"]
[null,"Eseménykezelési projektnyilvántartó"]
[null,{"$f":"B1&\" Bizalmas\"","v":"Cég neve Bizalmas"}]
[null,"Az árnyékolt cellák értékét a sablon kiszámítja Ön helyett. Ezekbe nem kell írnia semmit."]
[null,"PROJEKT TÍPUSA","ÜGYFÉLKAPCSOLATI VEZETŐ","PROJEKTMENEDZSER","STRATÉGIAI VEZETŐ","ARCULATI SZAKÉRTŐ","ESEMÉNY SZEMÉLYZETE","ADMINISZTRÁCIÓS SZEMÉLYZET","Összeg"]
[null,"Eseménystratégia fejlesztése",{"v":0.2,"d":"20%"},{"v":0.1,"d":"10%"},{"v":0.6,"d":"60%"},{"v":0,"d":"0%"},{"v":0,"d":"0%"},{"v":0.1,"d":"10%"},{"$f":"SUM(Paraméterek[[#This Row],[ÜGYFÉLKAPCSOLATI VEZETŐ]:[ADMINISZTRÁCIÓS SZEMÉLYZET]])","v":{"v":1,"d":"100%"}}]
[null,"Eseménytervezés",{"v":0.2,"d":"20%"},{"v":0.5,"d":"50%"},{"v":0.1,"d":"10%"},{"v":0.1,"d":"10%"},{"v":0,"d":"0%"},{"v":0.1,"d":"10%"},{"$f":"SUM(Paraméterek[[#This Row],[ÜGYFÉLKAPCSOLATI VEZETŐ]:[ADMINISZTRÁCIÓS SZEMÉLYZET]])","v":{"v":0.9999999999999999,"d":"100%"}}]
[null,"Esemény arculata",{"v":0.2,"d":"20%"},{"v":0.2,"d":"20%"},{"v":0,"d":"0%"},{"v":0.5,"d":"50%"},{"v":0,"d":"0%"},{"v":0.1,"d":"10%"},{"$f":"SUM(Paraméterek[[#This Row],[ÜGYFÉLKAPCSOLATI VEZETŐ]:[ADMINISZTRÁCIÓS SZEMÉLYZET]])","v":{"v":1,"d":"100%"}}]
[null,"Esemény logisztikája",{"v":0.2,"d":"20%"},{"v":0.6,"d":"60%"},{"v":0,"d":"0%"},{"v":0,"d":"0%"},{"v":0.1,"d":"10%"},{"v":0.1,"d":"10%"},{"$f":"SUM(Paraméterek[[#This Row],[ÜGYFÉLKAPCSOLATI VEZETŐ]:[ADMINISZTRÁCIÓS SZEMÉLYZET]])","v":{"v":1,"d":"100%"}}]
[null,"Esemény személyzete",{"v":0.2,"d":"20%"},{"v":0.1,"d":"10%"},{"v":0,"d":"0%"},{"v":0,"d":"0%"},{"v":0.6,"d":"60%"},{"v":0.1,"d":"10%"},{"$f":"SUM(Paraméterek[[#This Row],[ÜGYFÉLKAPCSOLATI VEZETŐ]:[ADMINISZTRÁCIÓS SZEMÉLYZET]])","v":{"v":1,"d":"100%"}}]
[null,"Esemény értékelése",{"v":0.2,"d":"20%"},{"v":0.2,"d":"20%"},{"v":0.2,"d":"20%"},{"v":0.2,"d":"20%"},{"v":0,"d":"0%"},{"v":0.2,"d":"20%"},{"$f":"SUM(Paraméterek[[#This Row],[ÜGYFÉLKAPCSOLATI VEZETŐ]:[ADMINISZTRÁCIÓS SZEMÉLYZET]])","v":{"v":1,"d":"100%"}}]
[null,"Vegyes díjak",{"v":180,"d":"180 Ft"},{"v":120,"d":"120 Ft"},{"v":150,"d":"150 Ft"},{"v":100,"d":"100 Ft"},{"v":80,"d":"80 Ft"},{"v":60,"d":"60 Ft"}]
[]
[{"$nulls":5},"Ebben a cellában szerepel a tervezett és a tényleges óraszámot megjelenítő oszlopdiagram."]
[null,null,"ÜGYFÉLKAPCSOLATI VEZETŐ","PROJEKTMENEDZSER","STRATÉGIAI VEZETŐ","ARCULATI SZAKÉRTŐ","ESEMÉNY SZEMÉLYZETE","ADMINISZTRÁCIÓS SZEMÉLYZET"]
[null,"TERVEZETT KÖLTSÉG",{"$f":"SUBTOTAL(109,ProjektAdatok[ÜGYFÉLKAPCSOLATI VEZETŐ])","v":{"v":54000,"d":"54,000.00 Ft"}},{"$f":"SUBTOTAL(109,ProjektAdatok[PROJEKTMENEDZSER])","v":{"v":52200,"d":"52,200.00 Ft"}},{"$f":"SUBTOTAL(109,ProjektAdatok[STRATÉGIAI VEZETŐ])","v":{"v":24000,"d":"24,000.00 Ft"}},{"$f":"SUBTOTAL(109,ProjektAdatok[ARCULATI SZAKÉRTŐ])","v":{"v":29000,"d":"29,000.00 Ft"}},{"$f":"SUBTOTAL(109,ProjektAdatok[ESEMÉNY SZEMÉLYZETE])","v":{"v":13200,"d":"13,200.00 Ft"}},{"$f":"SUBTOTAL(109,ProjektAdatok[ADMINISZTRÁCIÓS SZEMÉLYZET])","v":{"v":9000,"d":"9,000.00 Ft"}}]
[null,"TÉNYLEGES KÖLTSÉG",{"$f":"SUBTOTAL(109,ProjektAdatok[[ÜGYFÉLKAPCSOLATI VEZETŐ ]])","v":{"v":54360,"d":"54,360.00 Ft"}},{"$f":"SUBTOTAL(109,ProjektAdatok[[PROJEKTMENEDZSER ]])","v":{"v":51540,"d":"51,540.00 Ft"}},{"$f":"SUBTOTAL(109,ProjektAdatok[[STRATÉGIAI VEZETŐ ]])","v":{"v":25650,"d":"25,650.00 Ft"}},{"$f":"SUBTOTAL(109,ProjektAdatok[[ARCULATI SZAKÉRTŐ ]])","v":{"v":28900,"d":"28,900.00 Ft"}},{"$f":"SUBTOTAL(109,ProjektAdatok[[ESEMÉNY SZEMÉLYZETE ]])","v":{"v":13400,"d":"13,400.00 Ft"}},{"$f":"SUBTOTAL(109,ProjektAdatok[[ADMINISZTRÁCIÓS SZEMÉLYZET ]])","v":{"v":9060,"d":"9,060.00 Ft"}}]
[null,"TERVEZETT ÓRASZÁM",{"$f":"C16/$C$12","v":{"v":300,"d":"300.00"}},{"$f":"D16/$C$12","v":{"v":290,"d":"290.00"}},{"v":133.33333333333334,"d":"133.33"},{"v":161.11111111111111,"d":"161.11"},{"v":73.33333333333333,"d":"73.33"},{"v":50,"d":"50.00"}]
[null,"TÉNYLEGES ÓRASZÁM",{"$f":"C17/$C$12","v":{"v":302,"d":"302.00"}},{"$f":"D17/$C$12","v":{"v":286.3333333333333,"d":"286.33"}},{"$f":"E17/$C$12","v":{"v":142.5,"d":"142.50"}},{"$f":"F17/$C$12","v":{"v":160.55555555555554,"d":"160.56"}},{"$f":"G17/$C$12","v":{"v":74.44444444444444,"d":"74.44"}},{"$f":"H17/$C$12","v":{"v":50.333333333333336,"d":"50.33"}}]

{"sheet":"PROJEKTADATOK","index":2,"n_rows":10,"n_cols":23,"rows_kept":10}
[null,{"$f":"'PROJEKT PARAMÉTEREI'!B1","v":"Cég neve"}]
[null,"Eseménykezelési projektnyilvántartó"]
[null,{"$f":"'PROJEKT PARAMÉTEREI'!B3","v":"Cég neve Bizalmas"}]
["A jobbra lévő cellában kezdődő Projektadatok táblázatban adhatja meg az adatokat.\nINFORMÁCIÓ\nHa fel szeretne venni egy sort a jobbra lévő táblázatba, jelölje ki a jobb alsó cellát a táblázat törzsében (nem a végösszegek sorában), és nyomja le a Tab billentyűt, vagy nyomja le a SHIFT+F10 billentyűkombinációt ott, ahová be szeretné szúrni a sort, és válassza a Beszúrás | Táblázatsorok felülre/alulra lehetőséget.\nÜgyeljen arra, hogy minden nem használt sort töröljön, mert a PROJEKT ÖSSZESÍTÉSE kimutatás a táblázatcellák mindegyikét használni fogja, és ha nem törli a nem használt sorokat, az hibás eredményekhez vezet.","PROJEKT NEVE","PROJEKT TÍPUSA","BECSÜLT KEZDÉS","BECSÜLT BEFEJEZÉS","TÉNYLEGES KEZDÉS","TÉNYLEGES BEFEJEZÉS","BECSÜLT MUNKA","TÉNYLEGES MUNKA","BECSÜLT IDŐTARTAM","TÉNYLEGES IDŐTARTAM","ÜGYFÉLKAPCSOLATI VEZETŐ","PROJEKTMENEDZSER","STRATÉGIAI VEZETŐ","ARCULATI SZAKÉRTŐ","ESEMÉNY SZEMÉLYZETE","ADMINISZTRÁCIÓS SZEMÉLYZET","ÜGYFÉLKAPCSOLATI VEZETŐ ","PROJEKTMENEDZSER ","STRATÉGIAI VEZETŐ ","ARCULATI SZAKÉRTŐ ","ESEMÉNY SZEMÉLYZETE ","ADMINISZTRÁCIÓS SZEMÉLYZET "]
[null,"1. projekt","Eseménystratégia fejlesztése",{"$f":"DATE(YEAR(TODAY()),6,9)","v":"2022-06-09"},{"$f":" DATE(YEAR(TODAY()),8,7)","v":"2022-08-07"},{"$f":"DATE(YEAR(TODAY()),6,29)","v":"2022-06-29"},{"$f":"DATE(YEAR(TODAY()),9,3)","v":"2022-09-03"},200,220,{"$f":"DAYS360(ProjektAdatok[[#This Row],[BECSÜLT KEZDÉS]],ProjektAdatok[[#This Row],[BECSÜLT BEFEJEZÉS]],FALSE)","v":58},{"$f":"DAYS360(ProjektAdatok[[#This Row],[TÉNYLEGES KEZDÉS]],ProjektAdatok[[#This Row],[TÉNYLEGES BEFEJEZÉS]],FALSE)","v":64},{"$f":"INDEX(Paraméterek[],MATCH(ProjektAdatok[[#This Row],[PROJEKT TÍPUSA]],Paraméterek[PROJEKT TÍPUSA],0),MATCH(ProjektAdatok[[#Headers],[ÜGYFÉLKAPCSOLATI VEZETŐ]],Paraméterek[#Headers],0))*INDEX('PROJEKT PARAMÉTEREI'!$B$12:$H$12,1,MATCH(ProjektAdatok[[#Headers],[ÜGYFÉLKAPCSOLATI VEZETŐ]],Paraméterek[#Headers],0))*ProjektAdatok[[#This Row],[BECSÜLT MUNKA]]","v":{"v":7200,"d":"7,200 Ft"}},{"$f":"INDEX(Paraméterek[],MATCH(ProjektAdatok[[#This Row],[PROJEKT TÍPUSA]],Paraméterek[PROJEKT TÍPUSA],0),MATCH(ProjektAdatok[[#Headers],[PROJEKTMENEDZSER]],Paraméterek[#Headers],0))*INDEX('PROJEKT PARAMÉTEREI'!$B$12:$H$12,1,MATCH(ProjektAdatok[[#Headers],[PROJEKTMENEDZSER]],Paraméterek[#Headers],0))*ProjektAdatok[[#This Row],[BECSÜLT MUNKA]]","v":{"v":2400,"d":"2,400 Ft"}},{"$f":"INDEX(Paraméterek[],MATCH(ProjektAdatok[[#This Row],[PROJEKT TÍPUSA]],Paraméterek[PROJEKT TÍPUSA],0),MATCH(ProjektAdatok[[#Headers],[STRATÉGIAI VEZETŐ]],Paraméterek[#Headers],0))*INDEX('PROJEKT PARAMÉTEREI'!$B$12:$H$12,1,MATCH(ProjektAdatok[[#Headers],[STRATÉGIAI VEZETŐ]],Paraméterek[#Headers],0))*ProjektAdatok[[#This Row],[BECSÜLT MUNKA]]","v":{"v":18000,"d":"18,000 Ft"}},{"$f":"INDEX(Paraméterek[],MATCH(ProjektAdatok[[#This Row],[PROJEKT TÍPUSA]],Paraméterek[PROJEKT TÍPUSA],0),MATCH(ProjektAdatok[[#Headers],[ARCULATI SZAKÉRTŐ]],Paraméterek[#Headers],0))*INDEX('PROJEKT PARAMÉTEREI'!$B$12:$H$12,1,MATCH(ProjektAdatok[[#Headers],[ARCULATI SZAKÉRTŐ]],Paraméterek[#Headers],0))*ProjektAdatok[[#This Row],[BECSÜLT MUNKA]]","v":{"v":0,"d":"0 Ft"}},{"$f":"INDEX(Paraméterek[],MATCH(ProjektAdatok[[#This Row],[PROJEKT TÍPUSA]],Paraméterek[PROJEKT TÍPUSA],0),MATCH(ProjektAdatok[[#Headers],[ESEMÉNY SZEMÉLYZETE]],Paraméterek[#Headers],0))*INDEX('PROJEKT PARAMÉTEREI'!$B$12:$H$12,1,MATCH(ProjektAdatok[[#Headers],[ESEMÉNY SZEMÉLYZETE]],Paraméterek[#Headers],0))*ProjektAdatok[[#This Row],[BECSÜLT MUNKA]]","v":{"v":0,"d":"0 Ft"}},{"$f":"INDEX(Paraméterek[],MATCH(ProjektAdatok[[#This Row],[PROJEKT TÍPUSA]],Paraméterek[PROJEKT TÍPUSA],0),MATCH(ProjektAdatok[[#Headers],[ADMINISZTRÁCIÓS SZEMÉLYZET]],Paraméterek[#Headers],0))*INDEX('PROJEKT PARAMÉTEREI'!$B$12:$H$12,1,MATCH(ProjektAdatok[[#Headers],[ADMINISZTRÁCIÓS SZEMÉLYZET]],Paraméterek[#Headers],0))*ProjektAdatok[[#This Row],[BECSÜLT MUNKA]]","v":{"v":1200,"d":"1,200 Ft"}},{"$f":"INDEX(Paraméterek[],MATCH(ProjektAdatok[[#This Row],[PROJEKT TÍPUSA]],Paraméterek[PROJEKT TÍPUSA],0),MATCH(ProjektAdatok[[#Headers],[ÜGYFÉLKAPCSOLATI VEZETŐ]],Paraméterek[#Headers],0))*INDEX('PROJEKT PARAMÉTEREI'!$B$12:$H$12,1,MATCH(ProjektAdatok[[#Headers],[ÜGYFÉLKAPCSOLATI VEZETŐ]],Paraméterek[#Headers],0))*ProjektAdatok[[#This Row],[TÉNYLEGES MUNKA]]","v":{"v":7920,"d":"7,920 Ft"}},{"$f":"INDEX(Paraméterek[],MATCH(ProjektAdatok[[#This Row],[PROJEKT TÍPUSA]],Paraméterek[PROJEKT TÍPUSA],0),MATCH(ProjektAdatok[[#Headers],[PROJEKTMENEDZSER]],Paraméterek[#Headers],0))*INDEX('PROJEKT PARAMÉTEREI'!$B$12:$H$12,1,MATCH(ProjektAdatok[[#Headers],[PROJEKTMENEDZSER]],Paraméterek[#Headers],0))*ProjektAdatok[[#This Row],[TÉNYLEGES MUNKA]]","v":{"v":2640,"d":"2,640 Ft"}},{"$f":"INDEX(Paraméterek[],MATCH(ProjektAdatok[[#This Row],[PROJEKT TÍPUSA]],Paraméterek[PROJEKT TÍPUSA],0),MATCH(ProjektAdatok[[#Headers],[STRATÉGIAI VEZETŐ]],Paraméterek[#Headers],0))*INDEX('PROJEKT PARAMÉTEREI'!$B$12:$H$12,1,MATCH(ProjektAdatok[[#Headers],[STRATÉGIAI VEZETŐ]],Paraméterek[#Headers],0))*ProjektAdatok[[#This Row],[TÉNYLEGES MUNKA]]","v":{"v":19800,"d":"19,800 Ft"}},{"$f":"INDEX(Paraméterek[],MATCH(ProjektAdatok[[#This Row],[PROJEKT TÍPUSA]],Paraméterek[PROJEKT TÍPUSA],0),MATCH(ProjektAdatok[[#Headers],[ARCULATI SZAKÉRTŐ]],Paraméterek[#Headers],0))*INDEX('PROJEKT PARAMÉTEREI'!$B$12:$H$12,1,MATCH(ProjektAdatok[[#Headers],[ARCULATI SZAKÉRTŐ]],Paraméterek[#Headers],0))*ProjektAdatok[[#This Row],[TÉNYLEGES MUNKA]]","v":{"v":0,"d":"0 Ft"}},{"$f":"INDEX(Paraméterek[],MATCH(ProjektAdatok[[#This Row],[PROJEKT TÍPUSA]],Paraméterek[PROJEKT TÍPUSA],0),MATCH(ProjektAdatok[[#Headers],[ESEMÉNY SZEMÉLYZETE]],Paraméterek[#Headers],0))*INDEX('PROJEKT PARAMÉTEREI'!$B$12:$H$12,1,MATCH(ProjektAdatok[[#Headers],[ESEMÉNY SZEMÉLYZETE]],Paraméterek[#Headers],0))*ProjektAdatok[[#This Row],[TÉNYLEGES MUNKA]]","v":{"v":0,"d":"0 Ft"}},{"$f":"INDEX(Paraméterek[],MATCH(ProjektAdatok[[#This Row],[PROJEKT TÍPUSA]],Paraméterek[PROJEKT TÍPUSA],0),MATCH(ProjektAdatok[[#Headers],[ADMINISZTRÁCIÓS SZEMÉLYZET]],Paraméterek[#Headers],0))*INDEX('PROJEKT PARAMÉTEREI'!$B$12:$H$12,1,MATCH(ProjektAdatok[[#Headers],[ADMINISZTRÁCIÓS SZEMÉLYZET]],Paraméterek[#Headers],0))*ProjektAdatok[[#This Row],[TÉNYLEGES MUNKA]]","v":{"v":1320,"d":"1,320 Ft"}}]
[null,"2. projekt","Eseménytervezés",{"$f":"DATE(YEAR(TODAY())+1,6,25)","v":"2023-06-25"},{"$f":"DATE(YEAR(TODAY())+1,7,27)","v":"2023-07-27"},{"$f":"DATE(YEAR(TODAY()),7,15)","v":"2022-07-15"},{"$f":"DATE(YEAR(TODAY())+1,8,25)","v":"2023-08-25"},400,390,{"$f":"DAYS360(ProjektAdatok[[#This Row],[BECSÜLT KEZDÉS]],ProjektAdatok[[#This Row],[BECSÜLT BEFEJEZÉS]],FALSE)","v":32},{"$f":"DAYS360(ProjektAdatok[[#This Row],[TÉNYLEGES KEZDÉS]],ProjektAdatok[[#This Row],[TÉNYLEGES BEFEJEZÉS]],FALSE)","v":400},{"$f":"INDEX(Paraméterek[],MATCH(ProjektAdatok[[#This Row],[PROJEKT TÍPUSA]],Paraméterek[PROJEKT TÍPUSA],0),MATCH(ProjektAdatok[[#Headers],[ÜGYFÉLKAPCSOLATI VEZETŐ]],Paraméterek[#Headers],0))*INDEX('PROJEKT PARAMÉTEREI'!$B$12:$H$12,1,MATCH(ProjektAdatok[[#Headers],[ÜGYFÉLKAPCSOLATI VEZETŐ]],Paraméterek[#Headers],0))*ProjektAdatok[[#This Row],[BECSÜLT MUNKA]]","v":{"v":14400,"d":"14,400 Ft"}},{"$f":"INDEX(Paraméterek[],MATCH(ProjektAdatok[[#This Row],[PROJEKT TÍPUSA]],Paraméterek[PROJEKT TÍPUSA],0),MATCH(ProjektAdatok[[#Headers],[PROJEKTMENEDZSER]],Paraméterek[#Headers],0))*INDEX('PROJEKT PARAMÉTEREI'!$B$12:$H$12,1,MATCH(ProjektAdatok[[#Headers],[PROJEKTMENEDZSER]],Paraméterek[#Headers],0))*ProjektAdatok[[#This Row],[BECSÜLT MUNKA]]","v":{"v":24000,"d":"24,000 Ft"}},{"$f":"INDEX(Paraméterek[],MATCH(ProjektAdatok[[#This Row],[PROJEKT TÍPUSA]],Paraméterek[PROJEKT TÍPUSA],0),MATCH(ProjektAdatok[[#Headers],[STRATÉGIAI VEZETŐ]],Paraméterek[#Headers],0))*INDEX('PROJEKT PARAMÉTEREI'!$B$12:$H$12,1,MATCH(ProjektAdatok[[#Headers],[STRATÉGIAI VEZETŐ]],Paraméterek[#Headers],0))*ProjektAdatok[[#This Row],[BECSÜLT MUNKA]]","v":{"v":6000,"d":"6,000 Ft"}},{"$f":"INDEX(Paraméterek[],MATCH(ProjektAdatok[[#This Row],[PROJEKT TÍPUSA]],Paraméterek[PROJEKT TÍPUSA],0),MATCH(ProjektAdatok[[#Headers],[ARCULATI SZAKÉRTŐ]],Paraméterek[#Headers],0))*INDEX('PROJEKT PARAMÉTEREI'!$B$12:$H$12,1,MATCH(ProjektAdatok[[#Headers],[ARCULATI SZAKÉRTŐ]],Paraméterek[#Headers],0))*ProjektAdatok[[#This Row],[BECSÜLT MUNKA]]","v":{"v":4000,"d":"4,000 Ft"}},{"$f":"INDEX(Paraméterek[],MATCH(ProjektAdatok[[#This Row],[PROJEKT TÍPUSA]],Paraméterek[PROJEKT TÍPUSA],0),MATCH(ProjektAdatok[[#Headers],[ESEMÉNY SZEMÉLYZETE]],Paraméterek[#Headers],0))*INDEX('PROJEKT PARAMÉTEREI'!$B$12:$H$12,1,MATCH(ProjektAdatok[[#Headers],[ESEMÉNY SZEMÉLYZETE]],Paraméterek[#Headers],0))*ProjektAdatok[[#This Row],[BECSÜLT MUNKA]]","v":{"v":0,"d":"0 Ft"}},{"$f":"INDEX(Paraméterek[],MATCH(ProjektAdatok[[#This Row],[PROJEKT TÍPUSA]],Paraméterek[PROJEKT TÍPUSA],0),MATCH(ProjektAdatok[[#Headers],[ADMINISZTRÁCIÓS SZEMÉLYZET]],Paraméterek[#Headers],0))*INDEX('PROJEKT PARAMÉTEREI'!$B$12:$H$12,1,MATCH(ProjektAdatok[[#Headers],[ADMINISZTRÁCIÓS SZEMÉLYZET]],Paraméterek[#Headers],0))*ProjektAdatok[[#This Row],[BECSÜLT MUNKA]]","v":{"v":2400,"d":"2,400 Ft"}},{"$f":"INDEX(Paraméterek[],MATCH(ProjektAdatok[[#This Row],[PROJEKT TÍPUSA]],Paraméterek[PROJEKT TÍPUSA],0),MATCH(ProjektAdatok[[#Headers],[ÜGYFÉLKAPCSOLATI VEZETŐ]],Paraméterek[#Headers],0))*INDEX('PROJEKT PARAMÉTEREI'!$B$12:$H$12,1,MATCH(ProjektAdatok[[#Headers],[ÜGYFÉLKAPCSOLATI VEZETŐ]],Paraméterek[#Headers],0))*ProjektAdatok[[#This Row],[TÉNYLEGES MUNKA]]","v":{"v":14040,"d":"14,040 Ft"}},{"$f":"INDEX(Paraméterek[],MATCH(ProjektAdatok[[#This Row],[PROJEKT TÍPUSA]],Paraméterek[PROJEKT TÍPUSA],0),MATCH(ProjektAdatok[[#Headers],[PROJEKTMENEDZSER]],Paraméterek[#Headers],0))*INDEX('PROJEKT PARAMÉTEREI'!$B$12:$H$12,1,MATCH(ProjektAdatok[[#Headers],[PROJEKTMENEDZSER]],Paraméterek[#Headers],0))*ProjektAdatok[[#This Row],[TÉNYLEGES MUNKA]]","v":{"v":23400,"d":"23,400 Ft"}},{"$f":"INDEX(Paraméterek[],MATCH(ProjektAdatok[[#This Row],[PROJEKT TÍPUSA]],Paraméterek[PROJEKT TÍPUSA],0),MATCH(ProjektAdatok[[#Headers],[STRATÉGIAI VEZETŐ]],Paraméterek[#Headers],0))*INDEX('PROJEKT PARAMÉTEREI'!$B$12:$H$12,1,MATCH(ProjektAdatok[[#Headers],[STRATÉGIAI VEZETŐ]],Paraméterek[#Headers],0))*ProjektAdatok[[#This Row],[TÉNYLEGES MUNKA]]","v":{"v":5850,"d":"5,850 Ft"}},{"$f":"INDEX(Paraméterek[],MATCH(ProjektAdatok[[#This Row],[PROJEKT TÍPUSA]],Paraméterek[PROJEKT TÍPUSA],0),MATCH(ProjektAdatok[[#Headers],[ARCULATI SZAKÉRTŐ]],Paraméterek[#Headers],0))*INDEX('PROJEKT PARAMÉTEREI'!$B$12:$H$12,1,MATCH(ProjektAdatok[[#Headers],[ARCULATI SZAKÉRTŐ]],Paraméterek[#Headers],0))*ProjektAdatok[[#This Row],[TÉNYLEGES MUNKA]]","v":{"v":3900,"d":"3,900 Ft"}},{"$f":"INDEX(Paraméterek[],MATCH(ProjektAdatok[[#This Row],[PROJEKT TÍPUSA]],Paraméterek[PROJEKT TÍPUSA],0),MATCH(ProjektAdatok[[#Headers],[ESEMÉNY SZEMÉLYZETE]],Paraméterek[#Headers],0))*INDEX('PROJEKT PARAMÉTEREI'!$B$12:$H$12,1,MATCH(ProjektAdatok[[#Headers],[ESEMÉNY SZEMÉLYZETE]],Paraméterek[#Headers],0))*ProjektAdatok[[#This Row],[TÉNYLEGES MUNKA]]","v":{"v":0,"d":"0 Ft"}},{"$f":"INDEX(Paraméterek[],MATCH(ProjektAdatok[[#This Row],[PROJEKT TÍPUSA]],Paraméterek[PROJEKT TÍPUSA],0),MATCH(ProjektAdatok[[#Headers],[ADMINISZTRÁCIÓS SZEMÉLYZET]],Paraméterek[#Headers],0))*INDEX('PROJEKT PARAMÉTEREI'!$B$12:$H$12,1,MATCH(ProjektAdatok[[#Headers],[ADMINISZTRÁCIÓS SZEMÉLYZET]],Paraméterek[#Headers],0))*ProjektAdatok[[#This Row],[TÉNYLEGES MUNKA]]","v":{"v":2340,"d":"2,340 Ft"}}]
[null,"3. projekt","Esemény arculata",{"$f":"DATE(YEAR(TODAY())+2,7,12)","v":"2024-07-12"},{"$f":"DATE(YEAR(TODAY())+2,9,19)","v":"2024-09-19"},"2025-08-07","2025-10-10",500,500,{"$f":"DAYS360(ProjektAdatok[[#This Row],[BECSÜLT KEZDÉS]],ProjektAdatok[[#This Row],[BECSÜLT BEFEJEZÉS]],FALSE)","v":67},{"$f":"DAYS360(ProjektAdatok[[#This Row],[TÉNYLEGES KEZDÉS]],ProjektAdatok[[#This Row],[TÉNYLEGES BEFEJEZÉS]],FALSE)","v":63},{"$f":"INDEX(Paraméterek[],MATCH(ProjektAdatok[[#This Row],[PROJEKT TÍPUSA]],Paraméterek[PROJEKT TÍPUSA],0),MATCH(ProjektAdatok[[#Headers],[ÜGYFÉLKAPCSOLATI VEZETŐ]],Paraméterek[#Headers],0))*INDEX('PROJEKT PARAMÉTEREI'!$B$12:$H$12,1,MATCH(ProjektAdatok[[#Headers],[ÜGYFÉLKAPCSOLATI VEZETŐ]],Paraméterek[#Headers],0))*ProjektAdatok[[#This Row],[BECSÜLT MUNKA]]","v":{"v":18000,"d":"18,000 Ft"}},{"$f":"INDEX(Paraméterek[],MATCH(ProjektAdatok[[#This Row],[PROJEKT TÍPUSA]],Paraméterek[PROJEKT TÍPUSA],0),MATCH(ProjektAdatok[[#Headers],[PROJEKTMENEDZSER]],Paraméterek[#Headers],0))*INDEX('PROJEKT PARAMÉTEREI'!$B$12:$H$12,1,MATCH(ProjektAdatok[[#Headers],[PROJEKTMENEDZSER]],Paraméterek[#Headers],0))*ProjektAdatok[[#This Row],[BECSÜLT MUNKA]]","v":{"v":12000,"d":"12,000 Ft"}},{"$f":"INDEX(Paraméterek[],MATCH(ProjektAdatok[[#This Row],[PROJEKT TÍPUSA]],Paraméterek[PROJEKT TÍPUSA],0),MATCH(ProjektAdatok[[#Headers],[STRATÉGIAI VEZETŐ]],Paraméterek[#Headers],0))*INDEX('PROJEKT PARAMÉTEREI'!$B$12:$H$12,1,MATCH(ProjektAdatok[[#Headers],[STRATÉGIAI VEZETŐ]],Paraméterek[#Headers],0))*ProjektAdatok[[#This Row],[BECSÜLT MUNKA]]","v":{"v":0,"d":"0 Ft"}},{"$f":"INDEX(Paraméterek[],MATCH(ProjektAdatok[[#This Row],[PROJEKT TÍPUSA]],Paraméterek[PROJEKT TÍPUSA],0),MATCH(ProjektAdatok[[#Headers],[ARCULATI SZAKÉRTŐ]],Paraméterek[#Headers],0))*INDEX('PROJEKT PARAMÉTEREI'!$B$12:$H$12,1,MATCH(ProjektAdatok[[#Headers],[ARCULATI SZAKÉRTŐ]],Paraméterek[#Headers],0))*ProjektAdatok[[#This Row],[BECSÜLT MUNKA]]","v":{"v":25000,"d":"25,000 Ft"}},{"$f":"INDEX(Paraméterek[],MATCH(ProjektAdatok[[#This Row],[PROJEKT TÍPUSA]],Paraméterek[PROJEKT TÍPUSA],0),MATCH(ProjektAdatok[[#Headers],[ESEMÉNY SZEMÉLYZETE]],Paraméterek[#Headers],0))*INDEX('PROJEKT PARAMÉTEREI'!$B$12:$H$12,1,MATCH(ProjektAdatok[[#Headers],[ESEMÉNY SZEMÉLYZETE]],Paraméterek[#Headers],0))*ProjektAdatok[[#This Row],[BECSÜLT MUNKA]]","v":{"v":0,"d":"0 Ft"}},{"$f":"INDEX(Paraméterek[],MATCH(ProjektAdatok[[#This Row],[PROJEKT TÍPUSA]],Paraméterek[PROJEKT TÍPUSA],0),MATCH(ProjektAdatok[[#Headers],[ADMINISZTRÁCIÓS SZEMÉLYZET]],Paraméterek[#Headers],0))*INDEX('PROJEKT PARAMÉTEREI'!$B$12:$H$12,1,MATCH(ProjektAdatok[[#Headers],[ADMINISZTRÁCIÓS SZEMÉLYZET]],Paraméterek[#Headers],0))*ProjektAdatok[[#This Row],[BECSÜLT MUNKA]]","v":{"v":3000,"d":"3,000 Ft"}},{"$f":"INDEX(Paraméterek[],MATCH(ProjektAdatok[[#This Row],[PROJEKT TÍPUSA]],Paraméterek[PROJEKT TÍPUSA],0),MATCH(ProjektAdatok[[#Headers],[ÜGYFÉLKAPCSOLATI VEZETŐ]],Paraméterek[#Headers],0))*INDEX('PROJEKT PARAMÉTEREI'!$B$12:$H$12,1,MATCH(ProjektAdatok[[#Headers],[ÜGYFÉLKAPCSOLATI VEZETŐ]],Paraméterek[#Headers],0))*ProjektAdatok[[#This Row],[TÉNYLEGES MUNKA]]","v":{"v":18000,"d":"18,000 Ft"}},{"$f":"INDEX(Paraméterek[],MATCH(ProjektAdatok[[#This Row],[PROJEKT TÍPUSA]],Paraméterek[PROJEKT TÍPUSA],0),MATCH(ProjektAdatok[[#Headers],[PROJEKTMENEDZSER]],Paraméterek[#Headers],0))*INDEX('PROJEKT PARAMÉTEREI'!$B$12:$H$12,1,MATCH(ProjektAdatok[[#Headers],[PROJEKTMENEDZSER]],Paraméterek[#Headers],0))*ProjektAdatok[[#This Row],[TÉNYLEGES MUNKA]]","v":{"v":12000,"d":"12,000 Ft"}},{"$f":"INDEX(Paraméterek[],MATCH(ProjektAdatok[[#This Row],[PROJEKT TÍPUSA]],Paraméterek[PROJEKT TÍPUSA],0),MATCH(ProjektAdatok[[#Headers],[STRATÉGIAI VEZETŐ]],Paraméterek[#Headers],0))*INDEX('PROJEKT PARAMÉTEREI'!$B$12:$H$12,1,MATCH(ProjektAdatok[[#Headers],[STRATÉGIAI VEZETŐ]],Paraméterek[#Headers],0))*ProjektAdatok[[#This Row],[TÉNYLEGES MUNKA]]","v":{"v":0,"d":"0 Ft"}},{"$f":"INDEX(Paraméterek[],MATCH(ProjektAdatok[[#This Row],[PROJEKT TÍPUSA]],Paraméterek[PROJEKT TÍPUSA],0),MATCH(ProjektAdatok[[#Headers],[ARCULATI SZAKÉRTŐ]],Paraméterek[#Headers],0))*INDEX('PROJEKT PARAMÉTEREI'!$B$12:$H$12,1,MATCH(ProjektAdatok[[#Headers],[ARCULATI SZAKÉRTŐ]],Paraméterek[#Headers],0))*ProjektAdatok[[#This Row],[TÉNYLEGES MUNKA]]","v":{"v":25000,"d":"25,000 Ft"}},{"$f":"INDEX(Paraméterek[],MATCH(ProjektAdatok[[#This Row],[PROJEKT TÍPUSA]],Paraméterek[PROJEKT TÍPUSA],0),MATCH(ProjektAdatok[[#Headers],[ESEMÉNY SZEMÉLYZETE]],Paraméterek[#Headers],0))*INDEX('PROJEKT PARAMÉTEREI'!$B$12:$H$12,1,MATCH(ProjektAdatok[[#Headers],[ESEMÉNY SZEMÉLYZETE]],Paraméterek[#Headers],0))*ProjektAdatok[[#This Row],[TÉNYLEGES MUNKA]]","v":{"v":0,"d":"0 Ft"}},{"$f":"INDEX(Paraméterek[],MATCH(ProjektAdatok[[#This Row],[PROJEKT TÍPUSA]],Paraméterek[PROJEKT TÍPUSA],0),MATCH(ProjektAdatok[[#Headers],[ADMINISZTRÁCIÓS SZEMÉLYZET]],Paraméterek[#Headers],0))*INDEX('PROJEKT PARAMÉTEREI'!$B$12:$H$12,1,MATCH(ProjektAdatok[[#Headers],[ADMINISZTRÁCIÓS SZEMÉLYZET]],Paraméterek[#Headers],0))*ProjektAdatok[[#This Row],[TÉNYLEGES MUNKA]]","v":{"v":3000,"d":"3,000 Ft"}}]
[null,"4. projekt","Esemény logisztikája",{"$f":"DATE(YEAR(TODAY())+3,7,30)","v":"2025-07-30"},{"$f":"DATE(YEAR(TODAY())+3,9,28)","v":"2025-09-28"},{"$f":"DATE(YEAR(TODAY())+3,9,14)","v":"2025-09-14"},{"$f":"DATE(YEAR(TODAY())+3,11,13)","v":"2025-11-13"},150,145,{"$f":"DAYS360(ProjektAdatok[[#This Row],[BECSÜLT KEZDÉS]],ProjektAdatok[[#This Row],[BECSÜLT BEFEJEZÉS]],FALSE)","v":58},{"$f":"DAYS360(ProjektAdatok[[#This Row],[TÉNYLEGES KEZDÉS]],ProjektAdatok[[#This Row],[TÉNYLEGES BEFEJEZÉS]],FALSE)","v":59},{"$f":"INDEX(Paraméterek[],MATCH(ProjektAdatok[[#This Row],[PROJEKT TÍPUSA]],Paraméterek[PROJEKT TÍPUSA],0),MATCH(ProjektAdatok[[#Headers],[ÜGYFÉLKAPCSOLATI VEZETŐ]],Paraméterek[#Headers],0))*INDEX('PROJEKT PARAMÉTEREI'!$B$12:$H$12,1,MATCH(ProjektAdatok[[#Headers],[ÜGYFÉLKAPCSOLATI VEZETŐ]],Paraméterek[#Headers],0))*ProjektAdatok[[#This Row],[BECSÜLT MUNKA]]","v":{"v":5400,"d":"5,400 Ft"}},{"$f":"INDEX(Paraméterek[],MATCH(ProjektAdatok[[#This Row],[PROJEKT TÍPUSA]],Paraméterek[PROJEKT TÍPUSA],0),MATCH(ProjektAdatok[[#Headers],[PROJEKTMENEDZSER]],Paraméterek[#Headers],0))*INDEX('PROJEKT PARAMÉTEREI'!$B$12:$H$12,1,MATCH(ProjektAdatok[[#Headers],[PROJEKTMENEDZSER]],Paraméterek[#Headers],0))*ProjektAdatok[[#This Row],[BECSÜLT MUNKA]]","v":{"v":10800,"d":"10,800 Ft"}},{"$f":"INDEX(Paraméterek[],MATCH(ProjektAdatok[[#This Row],[PROJEKT TÍPUSA]],Paraméterek[PROJEKT TÍPUSA],0),MATCH(ProjektAdatok[[#Headers],[STRATÉGIAI VEZETŐ]],Paraméterek[#Headers],0))*INDEX('PROJEKT PARAMÉTEREI'!$B$12:$H$12,1,MATCH(ProjektAdatok[[#Headers],[STRATÉGIAI VEZETŐ]],Paraméterek[#Headers],0))*ProjektAdatok[[#This Row],[BECSÜLT MUNKA]]","v":{"v":0,"d":"0 Ft"}},{"$f":"INDEX(Paraméterek[],MATCH(ProjektAdatok[[#This Row],[PROJEKT TÍPUSA]],Paraméterek[PROJEKT TÍPUSA],0),MATCH(ProjektAdatok[[#Headers],[ARCULATI SZAKÉRTŐ]],Paraméterek[#Headers],0))*INDEX('PROJEKT PARAMÉTEREI'!$B$12:$H$12,1,MATCH(ProjektAdatok[[#Headers],[ARCULATI SZAKÉRTŐ]],Paraméterek[#Headers],0))*ProjektAdatok[[#This Row],[BECSÜLT MUNKA]]","v":{"v":0,"d":"0 Ft"}},{"$f":"INDEX(Paraméterek[],MATCH(ProjektAdatok[[#This Row],[PROJEKT TÍPUSA]],Paraméterek[PROJEKT TÍPUSA],0),MATCH(ProjektAdatok[[#Headers],[ESEMÉNY SZEMÉLYZETE]],Paraméterek[#Headers],0))*INDEX('PROJEKT PARAMÉTEREI'!$B$12:$H$12,1,MATCH(ProjektAdatok[[#Headers],[ESEMÉNY SZEMÉLYZETE]],Paraméterek[#Headers],0))*ProjektAdatok[[#This Row],[BECSÜLT MUNKA]]","v":{"v":1200,"d":"1,200 Ft"}},{"$f":"INDEX(Paraméterek[],MATCH(ProjektAdatok[[#This Row],[PROJEKT TÍPUSA]],Paraméterek[PROJEKT TÍPUSA],0),MATCH(ProjektAdatok[[#Headers],[ADMINISZTRÁCIÓS SZEMÉLYZET]],Paraméterek[#Headers],0))*INDEX('PROJEKT PARAMÉTEREI'!$B$12:$H$12,1,MATCH(ProjektAdatok[[#Headers],[ADMINISZTRÁCIÓS SZEMÉLYZET]],Paraméterek[#Headers],0))*ProjektAdatok[[#This Row],[BECSÜLT MUNKA]]","v":{"v":900,"d":"900 Ft"}},{"$f":"INDEX(Paraméterek[],MATCH(ProjektAdatok[[#This Row],[PROJEKT TÍPUSA]],Paraméterek[PROJEKT TÍPUSA],0),MATCH(ProjektAdatok[[#Headers],[ÜGYFÉLKAPCSOLATI VEZETŐ]],Paraméterek[#Headers],0))*INDEX('PROJEKT PARAMÉTEREI'!$B$12:$H$12,1,MATCH(ProjektAdatok[[#Headers],[ÜGYFÉLKAPCSOLATI VEZETŐ]],Paraméterek[#Headers],0))*ProjektAdatok[[#This Row],[TÉNYLEGES MUNKA]]","v":{"v":5220,"d":"5,220 Ft"}},{"$f":"INDEX(Paraméterek[],MATCH(ProjektAdatok[[#This Row],[PROJEKT TÍPUSA]],Paraméterek[PROJEKT TÍPUSA],0),MATCH(ProjektAdatok[[#Headers],[PROJEKTMENEDZSER]],Paraméterek[#Headers],0))*INDEX('PROJEKT PARAMÉTEREI'!$B$12:$H$12,1,MATCH(ProjektAdatok[[#Headers],[PROJEKTMENEDZSER]],Paraméterek[#Headers],0))*ProjektAdatok[[#This Row],[TÉNYLEGES MUNKA]]","v":{"v":10440,"d":"10,440 Ft"}},{"$f":"INDEX(Paraméterek[],MATCH(ProjektAdatok[[#This Row],[PROJEKT TÍPUSA]],Paraméterek[PROJEKT TÍPUSA],0),MATCH(ProjektAdatok[[#Headers],[STRATÉGIAI VEZETŐ]],Paraméterek[#Headers],0))*INDEX('PROJEKT PARAMÉTEREI'!$B$12:$H$12,1,MATCH(ProjektAdatok[[#Headers],[STRATÉGIAI VEZETŐ]],Paraméterek[#Headers],0))*ProjektAdatok[[#This Row],[TÉNYLEGES MUNKA]]","v":{"v":0,"d":"0 Ft"}},{"$f":"INDEX(Paraméterek[],MATCH(ProjektAdatok[[#This Row],[PROJEKT TÍPUSA]],Paraméterek[PROJEKT TÍPUSA],0),MATCH(ProjektAdatok[[#Headers],[ARCULATI SZAKÉRTŐ]],Paraméterek[#Headers],0))*INDEX('PROJEKT PARAMÉTEREI'!$B$12:$H$12,1,MATCH(ProjektAdatok[[#Headers],[ARCULATI SZAKÉRTŐ]],Paraméterek[#Headers],0))*ProjektAdatok[[#This Row],[TÉNYLEGES MUNKA]]","v":{"v":0,"d":"0 Ft"}},{"$f":"INDEX(Paraméterek[],MATCH(ProjektAdatok[[#This Row],[PROJEKT TÍPUSA]],Paraméterek[PROJEKT TÍPUSA],0),MATCH(ProjektAdatok[[#Headers],[ESEMÉNY SZEMÉLYZETE]],Paraméterek[#Headers],0))*INDEX('PROJEKT PARAMÉTEREI'!$B$12:$H$12,1,MATCH(ProjektAdatok[[#Headers],[ESEMÉNY SZEMÉLYZETE]],Paraméterek[#Headers],0))*ProjektAdatok[[#This Row],[TÉNYLEGES MUNKA]]","v":{"v":1160,"d":"1,160 Ft"}},{"$f":"INDEX(Paraméterek[],MATCH(ProjektAdatok[[#This Row],[PROJEKT TÍPUSA]],Paraméterek[PROJEKT TÍPUSA],0),MATCH(ProjektAdatok[[#Headers],[ADMINISZTRÁCIÓS SZEMÉLYZET]],Paraméterek[#Headers],0))*INDEX('PROJEKT PARAMÉTEREI'!$B$12:$H$12,1,MATCH(ProjektAdatok[[#Headers],[ADMINISZTRÁCIÓS SZEMÉLYZET]],Paraméterek[#Headers],0))*ProjektAdatok[[#This Row],[TÉNYLEGES MUNKA]]","v":{"v":870,"d":"870 Ft"}}]
[null,"5. projekt","Esemény személyzete",{"$f":"DATE(YEAR(TODAY())+4,8,11)","v":"2026-08-11"},{"$f":"DATE(YEAR(TODAY())+4,8,21)","v":"2026-08-21"},{"$f":"DATE(YEAR(TODAY())+4,9,14)","v":"2026-09-14"},{"$f":"DATE(YEAR(TODAY())+4,9,25)","v":"2026-09-25"},250,255,{"$f":"DAYS360(ProjektAdatok[[#This Row],[BECSÜLT KEZDÉS]],ProjektAdatok[[#This Row],[BECSÜLT BEFEJEZÉS]],FALSE)","v":10},{"$f":"DAYS360(ProjektAdatok[[#This Row],[TÉNYLEGES KEZDÉS]],ProjektAdatok[[#This Row],[TÉNYLEGES BEFEJEZÉS]],FALSE)","v":11},{"$f":"INDEX(Paraméterek[],MATCH(ProjektAdatok[[#This Row],[PROJEKT TÍPUSA]],Paraméterek[PROJEKT TÍPUSA],0),MATCH(ProjektAdatok[[#Headers],[ÜGYFÉLKAPCSOLATI VEZETŐ]],Paraméterek[#Headers],0))*INDEX('PROJEKT PARAMÉTEREI'!$B$12:$H$12,1,MATCH(ProjektAdatok[[#Headers],[ÜGYFÉLKAPCSOLATI VEZETŐ]],Paraméterek[#Headers],0))*ProjektAdatok[[#This Row],[BECSÜLT MUNKA]]","v":{"v":9000,"d":"9,000 Ft"}},{"$f":"INDEX(Paraméterek[],MATCH(ProjektAdatok[[#This Row],[PROJEKT TÍPUSA]],Paraméterek[PROJEKT TÍPUSA],0),MATCH(ProjektAdatok[[#Headers],[PROJEKTMENEDZSER]],Paraméterek[#Headers],0))*INDEX('PROJEKT PARAMÉTEREI'!$B$12:$H$12,1,MATCH(ProjektAdatok[[#Headers],[PROJEKTMENEDZSER]],Paraméterek[#Headers],0))*ProjektAdatok[[#This Row],[BECSÜLT MUNKA]]","v":{"v":3000,"d":"3,000 Ft"}},{"$f":"INDEX(Paraméterek[],MATCH(ProjektAdatok[[#This Row],[PROJEKT TÍPUSA]],Paraméterek[PROJEKT TÍPUSA],0),MATCH(ProjektAdatok[[#Headers],[STRATÉGIAI VEZETŐ]],Paraméterek[#Headers],0))*INDEX('PROJEKT PARAMÉTEREI'!$B$12:$H$12,1,MATCH(ProjektAdatok[[#Headers],[STRATÉGIAI VEZETŐ]],Paraméterek[#Headers],0))*ProjektAdatok[[#This Row],[BECSÜLT MUNKA]]","v":{"v":0,"d":"0 Ft"}},{"$f":"INDEX(Paraméterek[],MATCH(ProjektAdatok[[#This Row],[PROJEKT TÍPUSA]],Paraméterek[PROJEKT TÍPUSA],0),MATCH(ProjektAdatok[[#Headers],[ARCULATI SZAKÉRTŐ]],Paraméterek[#Headers],0))*INDEX('PROJEKT PARAMÉTEREI'!$B$12:$H$12,1,MATCH(ProjektAdatok[[#Headers],[ARCULATI SZAKÉRTŐ]],Paraméterek[#Headers],0))*ProjektAdatok[[#This Row],[BECSÜLT MUNKA]]","v":{"v":0,"d":"0 Ft"}},{"$f":"INDEX(Paraméterek[],MATCH(ProjektAdatok[[#This Row],[PROJEKT TÍPUSA]],Paraméterek[PROJEKT TÍPUSA],0),MATCH(ProjektAdatok[[#Headers],[ESEMÉNY SZEMÉLYZETE]],Paraméterek[#Headers],0))*INDEX('PROJEKT PARAMÉTEREI'!$B$12:$H$12,1,MATCH(ProjektAdatok[[#Headers],[ESEMÉNY SZEMÉLYZETE]],Paraméterek[#Headers],0))*ProjektAdatok[[#This Row],[BECSÜLT MUNKA]]","v":{"v":12000,"d":"12,000 Ft"}},{"$f":"INDEX(Paraméterek[],MATCH(ProjektAdatok[[#This Row],[PROJEKT TÍPUSA]],Paraméterek[PROJEKT TÍPUSA],0),MATCH(ProjektAdatok[[#Headers],[ADMINISZTRÁCIÓS SZEMÉLYZET]],Paraméterek[#Headers],0))*INDEX('PROJEKT PARAMÉTEREI'!$B$12:$H$12,1,MATCH(ProjektAdatok[[#Headers],[ADMINISZTRÁCIÓS SZEMÉLYZET]],Paraméterek[#Headers],0))*ProjektAdatok[[#This Row],[BECSÜLT MUNKA]]","v":{"v":1500,"d":"1,500 Ft"}},{"$f":"INDEX(Paraméterek[],MATCH(ProjektAdatok[[#This Row],[PROJEKT TÍPUSA]],Paraméterek[PROJEKT TÍPUSA],0),MATCH(ProjektAdatok[[#Headers],[ÜGYFÉLKAPCSOLATI VEZETŐ]],Paraméterek[#Headers],0))*INDEX('PROJEKT PARAMÉTEREI'!$B$12:$H$12,1,MATCH(ProjektAdatok[[#Headers],[ÜGYFÉLKAPCSOLATI VEZETŐ]],Paraméterek[#Headers],0))*ProjektAdatok[[#This Row],[TÉNYLEGES MUNKA]]","v":{"v":9180,"d":"9,180 Ft"}},{"$f":"INDEX(Paraméterek[],MATCH(ProjektAdatok[[#This Row],[PROJEKT TÍPUSA]],Paraméterek[PROJEKT TÍPUSA],0),MATCH(ProjektAdatok[[#Headers],[PROJEKTMENEDZSER]],Paraméterek[#Headers],0))*INDEX('PROJEKT PARAMÉTEREI'!$B$12:$H$12,1,MATCH(ProjektAdatok[[#Headers],[PROJEKTMENEDZSER]],Paraméterek[#Headers],0))*ProjektAdatok[[#This Row],[TÉNYLEGES MUNKA]]","v":{"v":3060,"d":"3,060 Ft"}},{"$f":"INDEX(Paraméterek[],MATCH(ProjektAdatok[[#This Row],[PROJEKT TÍPUSA]],Paraméterek[PROJEKT TÍPUSA],0),MATCH(ProjektAdatok[[#Headers],[STRATÉGIAI VEZETŐ]],Paraméterek[#Headers],0))*INDEX('PROJEKT PARAMÉTEREI'!$B$12:$H$12,1,MATCH(ProjektAdatok[[#Headers],[STRATÉGIAI VEZETŐ]],Paraméterek[#Headers],0))*ProjektAdatok[[#This Row],[TÉNYLEGES MUNKA]]","v":{"v":0,"d":"0 Ft"}},{"$f":"INDEX(Paraméterek[],MATCH(ProjektAdatok[[#This Row],[PROJEKT TÍPUSA]],Paraméterek[PROJEKT TÍPUSA],0),MATCH(ProjektAdatok[[#Headers],[ARCULATI SZAKÉRTŐ]],Paraméterek[#Headers],0))*INDEX('PROJEKT PARAMÉTEREI'!$B$12:$H$12,1,MATCH(ProjektAdatok[[#Headers],[ARCULATI SZAKÉRTŐ]],Paraméterek[#Headers],0))*ProjektAdatok[[#This Row],[TÉNYLEGES MUNKA]]","v":{"v":0,"d":"0 Ft"}},{"$f":"INDEX(Paraméterek[],MATCH(ProjektAdatok[[#This Row],[PROJEKT TÍPUSA]],Paraméterek[PROJEKT TÍPUSA],0),MATCH(ProjektAdatok[[#Headers],[ESEMÉNY SZEMÉLYZETE]],Paraméterek[#Headers],0))*INDEX('PROJEKT PARAMÉTEREI'!$B$12:$H$12,1,MATCH(ProjektAdatok[[#Headers],[ESEMÉNY SZEMÉLYZETE]],Paraméterek[#Headers],0))*ProjektAdatok[[#This Row],[TÉNYLEGES MUNKA]]","v":{"v":12240,"d":"12,240 Ft"}},{"$f":"INDEX(Paraméterek[],MATCH(ProjektAdatok[[#This Row],[PROJEKT TÍPUSA]],Paraméterek[PROJEKT TÍPUSA],0),MATCH(ProjektAdatok[[#Headers],[ADMINISZTRÁCIÓS SZEMÉLYZET]],Paraméterek[#Headers],0))*INDEX('PROJEKT PARAMÉTEREI'!$B$12:$H$12,1,MATCH(ProjektAdatok[[#Headers],[ADMINISZTRÁCIÓS SZEMÉLYZET]],Paraméterek[#Headers],0))*ProjektAdatok[[#This Row],[TÉNYLEGES MUNKA]]","v":{"v":1530,"d":"1,530 Ft"}}]
[null,"ÖSSZEG",{"$nulls":5},{"$f":"SUBTOTAL(109,ProjektAdatok[BECSÜLT MUNKA])","v":1500},{"$f":"SUBTOTAL(109,ProjektAdatok[TÉNYLEGES MUNKA])","v":1510},{"$f":"SUBTOTAL(109,ProjektAdatok[BECSÜLT IDŐTARTAM])","v":225},{"$f":"SUBTOTAL(109,ProjektAdatok[TÉNYLEGES IDŐTARTAM])","v":597}]

{"sheet":"PROJEKT ÖSSZESÍTÉSE","index":3,"n_rows":10,"n_cols":14,"rows_kept":10}
[null,{"$f":"'PROJEKT PARAMÉTEREI'!B1","v":"Cég neve"}]
[null,"Eseménykezelési projektnyilvántartó"]
[null,{"$f":"'PROJEKT PARAMÉTEREI'!B3","v":"Cég neve Bizalmas"}]
["A jobbra lévő cellában kezdődő kimutatás automatikusan frissül.\nINFORMÁCIÓ\nA jobbra lévő kimutatás frissítéséhez jelölje ki azt (a kimutatásban bármelyik cellát), és válassza a KIMUTATÁSESZKÖZÖK | ELEMZÉS menüszalaglapon a Frissítés lehetőséget, vagy nyomja le a SHIFT+F10 billentyűkombinációt a kimutatás egy tetszőleges cellájában, és válassza a Frissítés parancsot.","PROJEKT NEVE","ÜGYFÉLKAPCSOLATI VEZETŐ – BECSÜLT","PROJEKTMENEDZSER – BECSÜLT","STRATÉGIAI VEZETŐ – BECSÜLT","ARCULATI SZAKÉRTŐ – BECSÜLT","ESEMÉNY SZEMÉLYZETE – BECSÜLT","ADMINISZTRATÍV SZEMÉLYZET – BECSÜLT","ÜGYFÉLKAPCSOLATI VEZETŐ – TÉNYLEGES","PROJEKTMENEDZSER – TÉNYLEGES","STRATÉGIAI VEZETŐ – TÉNYLEGES","ARCULATI SZAKÉRTŐ – TÉNYLEGES","ESEMÉNY SZEMÉLYZETE – TÉNYLEGES","ADMINISZTRATÍV SZEMÉLYZET – TÉNYLEGES"]
[null,"1. projekt",{"v":7200,"d":"7,200.00 Ft"},{"v":2400,"d":"2,400.00 Ft"},{"v":18000,"d":"18,000.00 Ft"},{"v":0,"d":"0.00 Ft"},{"v":0,"d":"0.00 Ft"},{"v":1200,"d":"1,200.00 Ft"},{"v":7920,"d":"7,920.00 Ft"},{"v":2640,"d":"2,640.00 Ft"},{"v":19800,"d":"19,800.00 Ft"},{"v":0,"d":"0.00 Ft"},{"v":0,"d":"0.00 Ft"},{"v":1320,"d":"1,320.00 Ft"}]
[null,"2. projekt",{"v":14400,"d":"14,400.00 Ft"},{"v":24000,"d":"24,000.00 Ft"},{"v":6000,"d":"6,000.00 Ft"},{"v":4000,"d":"4,000.00 Ft"},{"v":0,"d":"0.00 Ft"},{"v":2400,"d":"2,400.00 Ft"},{"v":14040,"d":"14,040.00 Ft"},{"v":23400,"d":"23,400.00 Ft"},{"v":5850,"d":"5,850.00 Ft"},{"v":3900,"d":"3,900.00 Ft"},{"v":0,"d":"0.00 Ft"},{"v":2340,"d":"2,340.00 Ft"}]
[null,"3. projekt",{"v":18000,"d":"18,000.00 Ft"},{"v":12000,"d":"12,000.00 Ft"},{"v":0,"d":"0.00 Ft"},{"v":25000,"d":"25,000.00 Ft"},{"v":0,"d":"0.00 Ft"},{"v":3000,"d":"3,000.00 Ft"},{"v":18000,"d":"18,000.00 Ft"},{"v":12000,"d":"12,000.00 Ft"},{"v":0,"d":"0.00 Ft"},{"v":25000,"d":"25,000.00 Ft"},{"v":0,"d":"0.00 Ft"},{"v":3000,"d":"3,000.00 Ft"}]
[null,"4. projekt",{"v":5400,"d":"5,400.00 Ft"},{"v":10800,"d":"10,800.00 Ft"},{"v":0,"d":"0.00 Ft"},{"v":0,"d":"0.00 Ft"},{"v":1200,"d":"1,200.00 Ft"},{"v":900,"d":"900.00 Ft"},{"v":5220,"d":"5,220.00 Ft"},{"v":10440,"d":"10,440.00 Ft"},{"v":0,"d":"0.00 Ft"},{"v":0,"d":"0.00 Ft"},{"v":1160,"d":"1,160.00 Ft"},{"v":870,"d":"870.00 Ft"}]
[null,"5. projekt",{"v":9000,"d":"9,000.00 Ft"},{"v":3000,"d":"3,000.00 Ft"},{"v":0,"d":"0.00 Ft"},{"v":0,"d":"0.00 Ft"},{"v":12000,"d":"12,000.00 Ft"},{"v":1500,"d":"1,500.00 Ft"},{"v":9180,"d":"9,180.00 Ft"},{"v":3060,"d":"3,060.00 Ft"},{"v":0,"d":"0.00 Ft"},{"v":0,"d":"0.00 Ft"},{"v":12240,"d":"12,240.00 Ft"},{"v":1530,"d":"1,530.00 Ft"}]
[null,"Végösszeg",{"v":54000,"d":"54,000.00 Ft"},{"v":52200,"d":"52,200.00 Ft"},{"v":24000,"d":"24,000.00 Ft"},{"v":29000,"d":"29,000.00 Ft"},{"v":13200,"d":"13,200.00 Ft"},{"v":9000,"d":"9,000.00 Ft"},{"v":54360,"d":"54,360.00 Ft"},{"v":51540,"d":"51,540.00 Ft"},{"v":25650,"d":"25,650.00 Ft"},{"v":28900,"d":"28,900.00 Ft"},{"v":13400,"d":"13,400.00 Ft"},{"v":9060,"d":"9,060.00 Ft"}]